bitfinex/quotes_ETHUSD_20230903
["timestamp","ask_amount","ask_price","bid_price","bid_amount"]
[1693701186031,5.23755404,1634.3,1633.8,0.39675]
[1693701186617,5.23755404,1634.3,1633.9,0.54145918]
[1693701187339,2.1557,1634.3,1633.9,0.54145918]
[1693701188530,1.555,1634.6,1633.9,2.09645918]
[1693701188738,5.16625636,1634.6,1633.9,2.09645918]
[1693701188932,5.682882,1634.6,1634.0,2.6428]
[1693701189257,2.1126,1634.5,1634.0,2.6428]
[1693701197385,3.08185404,1634.4,1634.0,2.6428]
[1693701197624,3.08185404,1634.4,1633.9,0.54145918]
[1693701197625,1.555,1634.3,1633.9,0.54145918]
[1693701197931,5.15347968,1634.3,1633.8,3.44590058]
[1693701198082,7.29727968,1634.3,1633.8,3.44590058]
[1693701198285,7.04727968,1634.3,1633.8,3.44590058]
[1693701200088,2.66042564,1634.3,1633.8,3.44590058]
[1693701200286,2.66042564,1634.3,1633.8,4.72123468]
[1693701200287,2.1438,1634.3,1633.8,4.72123468]
[1693701200448,2.1438,1634.3,1633.9,0.95650058]
[1693701201284,2.1438,1634.3,1634.0,0.54121854]
[1693701205283,0.51662564,1634.6,1634.0,1.49771912]
[1693701205284,2.07162564,1634.6,1634.0,1.49771912]
[1693701205484,2.0796,1634.5,1634.0,1.49771912]
[1693701205688,2.0796,1634.5,1634.1,2.51]
[1693701207283,2.0796,1634.5,1634.1,3.46650058]
[1693701212212,2.0796,1634.5,1634.1,4.74183468]
[1693701213381,6.17058003,1634.4,1634.1,3.46650058]
[1693701213597,2.0796,1634.5,1634.1,4.74183468]
[1693701214105,2.0796,1634.5,1634.2,0.95650058]
[1693701216418,2.0796,1634.5,1634.3,0.5407195]
[1693701220216,2.0796,1634.5,1634.3,1.49722008]
[1693701221319,1.656,1634.8,1634.3,1.49722008]
[1693701221510,11.86303792,1634.7,1634.3,1.49722008]
[1693701221698,6.17028388,1634.6,1634.4,2.5872]
[1693701223137,6.17028388,1634.6,1634.4,3.54370058]
[1693701223339,6.17028388,1634.6,1634.4,2.5872]
[1693701224126,6.17028388,1634.6,1634.4,3.54370058]
[1693701224332,6.17028388,1634.6,1634.4,2.5872]
[1693701225124,6.17028388,1634.6,1634.4,3.54370058]
[1693701226120,6.17028388,1634.6,1634.4,2.5872]
[1693701229912,6.17028388,1634.6,1634.4,3.54849639]
[1693701230834,6.17028388,1634.6,1634.4,2.5872]
[1693701231638,6.17028388,1634.6,1634.5,0.5403869]
[1693701235522,5.69275404,1634.7,1634.5,0.5403869]
[1693701245260,6.17016627,1634.6,1634.5,0.5403869]
[1693701285214,6.66163099,1634.6,1634.5,0.5403869]
[1693701300634,11.02481135,1634.6,1634.5,0.5403869]
[1693701300831,11.02481135,1634.6,1634.2,2.6428]
[1693701300985,6.17016627,1634.5,1634.2,2.6428]
[1693701301189,6.17016627,1634.5,1634.3,0.5407195]
[1693701306136,6.17016627,1634.5,1634.2,2.6428]
[1693701306339,6.17016627,1634.5,1634.4,0.54055319]
[1693701306688,6.17016627,1634.5,1634.2,2.6428]
[1693701306891,6.17016627,1634.5,1634.2,2.9558947]
[1693701307195,6.17016627,1634.5,1634.3,0.5407195]
[1693701313818,6.17016627,1634.5,1634.2,2.9558947]
[1693701314017,6.17016627,1634.5,1634.4,0.54055319]
[1693701314590,6.17016627,1634.5,1634.2,2.9558947]
[1693701315247,8.84452723,1634.7,1634.3,0.5407195]
[1693701315454,4.70805401,1634.6,1634.3,0.89038092]
[1693701320257,7.28952723,1634.7,1634.3,0.89038092]
[1693701322569,7.28952723,1634.7,1634.4,2.4274]
[1693701322908,7.28952723,1634.7,1634.4,2.96795319]
[1693701323158,7.28952723,1634.7,1634.4,2.91795319]
[1693701332683,5.69275404,1634.7,1634.4,2.3774]
[1693701336497,0.43435502,1634.6,1634.4,2.3774]
[1693701336872,6.17755058,1634.7,1634.4,2.3774]
[1693701337265,7.11674902,1634.7,1634.4,2.3774]
[1693701338601,6.17755058,1634.7,1634.4,2.3774]
[1693701345582,2.61569654,1634.7,1634.4,2.3774]
[1693701348431,2.1309,1634.7,1634.4,2.3774]
[1693701351642,0.41925799,1634.6,1634.4,2.3774]
[1693701351997,2.2679,1634.8,1634.4,2.3774]
[1693701352377,0.101,1634.8,1634.5,1.56]
[1693701352644,0.101,1634.8,1634.5,0.96364595]
[1693701352941,0.101,1634.8,1634.6,1.56]
[1693701353291,0.101,1634.8,1634.6,2.4966]
[1693701363835,0.101,1634.8,1634.6,3.46024595]
[1693701364036,0.101,1634.8,1634.7,0.3460246]
[1693701365058,0.101,1634.8,1634.7,1.30967055]
[1693701366770,0.48914786,1634.8,1634.7,1.30967055]
[1693701368765,0.48914786,1634.8,1634.7,2.59453182]
[1693701371800,0.48914786,1634.8,1634.7,1.63088587]
[1693701376298,0.48914786,1634.8,1634.7,1.95210119]
[1693701380287,0.48914786,1634.8,1634.7,2.44623711]
[1693701385739,0.48914786,1634.8,1634.7,2.43980506]
[1693701388227,0.48914786,1634.8,1634.7,8.82216052]
[1693701388645,0.48914786,1634.8,1634.7,0.84016052]
[1693701388828,0.48914786,1634.8,1634.7,2.09427649]
[1693701389143,0.48914786,1634.8,1634.7,3.37466589]
[1693701389341,0.48914786,1634.8,1634.7,1.77452532]
[1693701389561,0.48914786,1634.8,1634.7,2.88052997]
[1693701391513,0.48914786,1634.8,1634.7,1.2803894]
[1693701393750,0.48914786,1634.8,1634.7,2.88052997]
[1693701393935,0.48914786,1634.8,1634.7,1.2803894]
[1693701394750,0.48914786,1634.8,1634.6,0.49582649]
[1693701395063,0.48914786,1634.8,1634.7,1.28207782]
[1693701395218,0.48914786,1634.8,1634.7,2.8846751]
[1693701395609,0.48914786,1634.8,1634.7,1.28207782]
[1693701395861,0.48914786,1634.8,1634.7,2.8846751]
[1693701396111,0.48914786,1634.8,1634.7,1.60259728]
[1693701399746,0.48914786,1634.8,1634.7,2.88601568]
[1693701399984,0.48914786,1634.8,1634.7,1.60259728]
[1693701400761,0.48914786,1634.8,1634.7,2.88603851]
[1693701401868,0.48914786,1634.8,1634.7,1.28344123]
[1693701403767,0.48914786,1634.8,1634.7,2.24615213]
[1693701404770,0.48914786,1634.8,1634.7,0.9627109]
[1693701412250,0.48914786,1634.8,1634.7,2.24615213]
[1693701415465,0.48914786,1634.8,1634.7,0.9627109]
[1693701419701,0.48914786,1634.8,1634.7,0.96297113]
[1693701422289,0.48914786,1634.8,1634.6,2.73342772]
[1693701422502,0.48914786,1634.8,1634.5,2.24693264]
[1693701422688,0.48914786,1634.8,1634.5,0.96297113]
[1693701422996,2.64844786,1634.8,1634.5,0.96297113]
[1693701424213,3.06929265,1634.8,1634.5,0.96297113]
[1693701424612,3.06929265,1634.8,1634.4,2.74447892]
[1693701425115,3.06929265,1634.8,1634.5,0.96297113]
[1693701426591,3.06929265,1634.8,1634.4,2.74447892]
[1693701430620,3.06929265,1634.8,1634.4,1.46051741]
[1693701440663,3.06929265,1634.8,1634.4,0.49754628]
[1693701440831,3.06929265,1634.8,1634.3,4.84143264]
[1693701441031,2.64844786,1634.8,1634.3,5.59093056]
[1693701444441,2.011,1634.7,1634.3,5.59093056]
[1693701444763,0.38935977,1634.6,1634.3,6.07568703]
[1693701445268,2.011,1634.7,1634.3,6.07568703]
[1693701452708,2.011,1634.7,1634.4,0.96297113]
[1693701453390,2.011,1634.7,1634.4,1.57053983]
[1693701456497,0.38935977,1634.6,1634.4,1.57053983]
[1693701457163,2.011,1634.7,1634.4,1.57053983]
[1693701463692,2.011,1634.7,1634.4,2.85450134]
[1693701465862,2.011,1634.7,1634.5,0.96297113]
[1693701471471,0.38939344,1634.6,1634.5,0.96297113]
[1693701471632,0.38939344,1634.6,1634.5,1.40891645]
[1693701471786,2.011,1634.7,1634.5,1.40891645]
[1693701472127,2.011,1634.7,1634.5,3.55247113]
[1693701479351,2.011,1634.7,1634.5,4.83643264]
[1693701479647,2.011,1634.7,1634.5,3.55247113]
[1693701480101,2.011,1634.7,1634.5,4.83643264]
[1693701486479,0.38939344,1634.6,1634.5,4.83643264]
[1693701486811,2.011,1634.7,1634.5,4.83643264]
[1693701491459,2.011,1634.7,1634.5,3.55247113]
[1693701496182,2.011,1634.7,1634.5,4.83643264]
[1693701501507,0.38939344,1634.6,1634.5,4.83643264]
[1693701501697,0.38939344,1634.6,1634.5,5.54132796]
[1693701501995,2.011,1634.7,1634.5,5.54132796]
[1693701502160,2.011,1634.7,1634.5,4.83643264]
[1693701516526,0.38771462,1634.6,1634.5,4.83643264]
[1693701516919,2.011,1634.7,1634.5,4.83643264]
[1693701518613,2.011,1634.7,1634.5,3.55247113]
[1693701519114,2.011,1634.7,1634.5,4.83643264]
[1693701526746,0.101,1634.8,1634.6,0.96297113]
[1693701527043,0.101,1634.8,1634.7,0.96297113]
[1693701528444,0.101,1634.8,1634.7,0.96344658]
[1693701531582,0.47625597,1634.8,1634.7,0.96344658]
[1693701555989,0.47625597,1634.8,1634.7,0.96239191]
[1693701560032,0.47625597,1634.8,1634.6,2.24558113]
[1693701560236,0.47625597,1634.8,1634.6,1.72065438]
[1693701561618,0.47625597,1634.8,1634.6,3.0038436]
[1693701567458,0.47625597,1634.8,1634.7,0.96239191]
[1693701599003,0.47625597,1634.8,1634.7,2.24558113]
[1693701603431,0.47625597,1634.8,1634.7,1.28318922]
[1693701603735,0.47625597,1634.8,1634.7,2.24682199]
[1693701604434,0.47625597,1634.8,1634.7,1.28318922]
[1693701607542,0.47625597,1634.8,1634.7,2.24681339]
[1693701613859,0.47625597,1634.8,1634.7,2.70771963]
[1693701621862,0.47625597,1634.8,1634.7,2.24681339]
[1693701631300,0.47625597,1634.8,1634.7,1.28318922]
[1693701632791,0.9386963,1634.8,1634.7,1.28318922]
[1693701632988,0.10718289,1634.8,1634.7,1.28318922]
[1693701633996,0.10718289,1634.8,1634.7,2.24679195]
[1693701635686,0.10718289,1634.8,1634.7,1.28318922]
[1693701635888,0.10718289,1634.8,1634.7,2.24680539]
[1693701636492,0.93867535,1634.8,1634.7,1.28318922]
[1693701636804,0.94481745,1634.8,1634.7,1.28318922]
[1693701654978,0.94481745,1634.8,1634.6,2.36224899]
[1693701655144,0.94481745,1634.8,1634.7,1.28501701]
[1693701655873,0.93867535,1634.8,1634.7,1.28501701]
[1693701661971,0.94481745,1634.8,1634.7,1.28501701]
[1693701662776,0.93867535,1634.8,1634.7,1.28501701]
[1693701689871,0.94481745,1634.8,1634.7,1.28501701]
[1693701692876,0.93867535,1634.8,1634.7,1.28501701]
[1693701694775,0.94481872,1634.8,1634.7,1.28501701]
[1693701700377,0.94481872,1634.8,1634.7,1.64997209]
[1693701700864,0.93867535,1634.8,1634.7,1.64997209]
[1693701703755,0.94481872,1634.8,1634.7,1.75354332]
[1693701715188,0.94481872,1634.8,1634.7,3.35981459]
[1693701716322,0.94481872,1634.8,1634.7,2.07479758]
[1693701717810,0.94481872,1634.8,1634.7,3.3594818]
[1693701719015,0.94481872,1634.8,1634.7,2.07479758]
[1693701719187,0.94481872,1634.8,1634.7,0.46852631]
[1693701721924,0.94481872,1634.8,1634.7,2.07355153]
[1693701729425,0.94481872,1634.8,1634.7,2.55672241]
[1693701741349,0.94481872,1634.8,1634.7,4.11672241]
[1693701752404,0.94481872,1634.8,1634.7,2.55672241]
[1693701759868,0.94481872,1634.8,1634.7,0.95169719]
[1693701764903,0.94481872,1634.8,1634.7,2.87922271]
[1693701774332,0.94481872,1634.8,1634.7,2.87183292]
[1693701794893,0.94481872,1634.8,1634.7,2.87123991]
[1693701801971,0.94481872,1634.8,1634.7,2.87123325]
[1693701802917,5.58667276,1634.8,1634.3,2.24845218]
[1693701803222,5.58667276,1634.8,1634.0,3.18684194]
[1693701803223,3.08185404,1634.5,1634.0,2.2484352]
[1693701803511,7.70669845,1634.4,1634.2,0.96382698]
[1693701803724,4.64185404,1634.3,1634.2,0.96382698]
[1693701803889,9.25811809,1634.3,1634.0,0.96382698]
[1693701804071,6.17040102,1634.2,1634.0,0.96382698]
[1693701804270,0.6170401,1634.1,1633.9,0.96382698]
[1693701804469,6.34240329,1634.1,1633.9,0.96382698]
[1693701804812,0.00583563,1634.0,1633.8,0.96382698]
[1693701805179,5.00315549,1634.0,1633.8,0.96382698]
[1693701805903,0.00583563,1634.0,1633.9,0.96382698]
[1693701808985,3.08768967,1634.0,1633.9,0.96382698]
[1693701809190,4.95645864,1634.0,1633.8,0.96382698]
[1693701809423,1.56,1633.9,1633.8,0.96382698]
[1693701809829,1.56582783,1633.9,1633.8,0.96382698]
[1693701810739,1.56582783,1633.9,1633.7,1.59714487]
[1693701811042,1.56582783,1633.9,1633.8,1.27707605]
[1693701811339,2.06147291,1633.9,1633.8,1.27707605]
[1693701811896,0.50147291,1633.9,1633.8,1.27707605]
[1693701812240,0.00582783,1633.9,1633.8,2.87422092]
[1693701812717,0.00582783,1633.9,1633.8,1.59714487]
[1693701813036,1.56,1634.1,1633.8,1.59714487]
[1693701813330,3.0,1634.2,1634.0,0.95702688]
[1693701813539,1.56,1634.1,1634.0,0.95702688]
[1693701813747,2.0241854,1634.1,1634.0,0.95702688]
[1693701813919,2.03002882,1634.1,1634.0,0.95702688]
[1693701816146,2.03002882,1634.1,1634.0,2.23306272]
[1693701816342,2.03002882,1634.1,1634.0,0.95702688]
[1693701816550,2.82360391,1634.1,1634.0,0.95702688]
[1693701822561,1.26360391,1634.1,1634.0,0.95702688]
[1693701822748,0.79941851,1634.1,1634.0,0.95702688]
[1693701825461,2.35941851,1634.1,1634.0,0.95702688]
[1693701828636,2.35941851,1634.1,1634.0,0.90702688]
[1693701831576,2.35941851,1634.1,1634.0,2.18306272]
[1693701834795,2.35941851,1634.1,1634.0,1.27603584]
[1693701837702,2.35941851,1634.1,1634.0,2.87318071]
[1693701838600,2.35941851,1634.1,1634.0,1.59714487]
[1693701842532,0.79941851,1634.1,1633.9,1.9175148]
[1693701843632,0.79941851,1634.1,1634.0,1.9175148]
[1693701844427,1.33536036,1634.1,1634.0,1.9175148]
[1693701846600,1.33536036,1634.1,1634.0,2.2484352]
[1693701847132,1.33536036,1634.1,1633.9,4.9994352]
[1693701847569,1.33536036,1634.1,1634.0,2.2484352]
[1693701848324,2.89536036,1634.1,1633.9,2.2484352]
[1693701848543,5.89536036,1634.1,1634.0,2.2484352]
[1693701848744,8.89536036,1634.1,1634.0,2.2484352]
[1693701851563,8.89536036,1634.1,1633.9,2.2484352]
[1693701851768,3.0,1634.0,1633.9,2.2484352]
[1693701852156,3.79284582,1634.0,1633.8,2.6559419]
[1693701852556,3.79284582,1634.0,1633.9,2.24764139]
[1693701853074,3.79868145,1634.0,1633.9,2.24764139]
[1693701853925,3.79868145,1634.0,1633.8,2.24764139]
[1693701854126,3.79868145,1634.0,1633.9,2.24764139]
[1693701854332,5.90238145,1634.0,1633.9,2.2476545]
[1693701854526,5.90238145,1634.0,1633.8,2.2476545]
[1693701855636,5.90238145,1634.0,1633.9,1.92633028]
[1693701857584,5.90238145,1634.0,1633.8,1.92633028]
[1693701857743,5.90238145,1634.0,1633.9,1.60507482]
[1693701858072,5.90238145,1634.0,1633.8,1.92633028]
[1693701858488,5.90238145,1634.0,1633.9,1.60501176]
[1693701859585,5.90238145,1634.0,1633.9,1.28394655]
[1693701860591,5.90238145,1634.0,1633.9,0.9629063]
[1693701861692,5.90238145,1634.0,1633.7,3.5315063]
[1693701866572,5.90238145,1634.0,1633.7,2.5686]
[1693701891460,5.90238145,1634.0,1633.7,3.5315063]
[1693701893273,6.39391807,1634.0,1633.7,3.5315063]
[1693701894343,5.90238145,1634.0,1633.7,3.5315063]
[1693701915199,5.90238145,1634.0,1633.7,4.81545285]
[1693701917457,5.90238145,1634.0,1633.8,0.9629063]
[1693701917458,0.79868145,1634.0,1633.8,0.9629063]
[1693701917894,0.79868145,1634.0,1633.9,0.9629063]
[1693701918269,0.79868145,1634.0,1633.9,3.5328063]
[1693701919797,0.79868145,1634.0,1633.9,2.5699]
[1693701931930,0.8015925,1634.0,1633.9,2.5699]
[1693701932236,0.8015925,1634.0,1633.9,2.92318063]
[1693701932723,1.13944874,1634.0,1633.9,2.92318063]
[1693701955603,1.13944874,1634.0,1633.9,3.8858754]
[1693701963738,1.13944874,1634.0,1633.9,5.16946843]
[1693701982770,1.13944874,1634.0,1633.9,3.8858754]
[1693701982975,1.13944874,1634.0,1633.9,3.53259477]
[1693701988789,1.13944874,1634.0,1633.9,3.53390633]
[1693702032169,1.10990352,1634.0,1633.9,3.53390633]
[1693702032971,1.10406789,1634.0,1633.9,3.53390633]
[1693702033865,1.10954301,1634.0,1633.9,3.53390633]
[1693702044929,1.10954301,1634.0,1633.9,4.8192481]
[1693702086866,1.10954301,1634.0,1633.9,3.85524177]
[1693702108519,1.10954301,1634.0,1633.9,1.28534177]
[1693702108699,1.10954301,1634.0,1633.9,2.24944343]
[1693702109183,1.10954301,1634.0,1633.9,0.96410166]
[1693702111923,1.10663196,1634.0,1633.9,0.96410166]
[1693702112828,0.76877572,1634.0,1633.9,0.96410166]
[1693702113028,0.77168616,1634.0,1633.9,0.99221681]
[1693702113327,1.10851422,1634.0,1633.9,0.99221681]
[1693702114026,1.05851422,1634.0,1633.9,0.99221681]
[1693702126872,1.05851422,1634.0,1633.9,0.96410166]
[1693702143336,1.05851422,1634.0,1633.9,3.75360166]
[1693702143534,1.05851422,1634.0,1633.9,4.30696182]
[1693702175748,1.05851422,1634.0,1633.9,3.34286016]
[1693702175949,1.05851422,1634.0,1633.9,3.75374084]
[1693702185451,1.05851422,1634.0,1633.9,5.0393953]
[1693702193205,1.05851422,1634.0,1633.9,4.07515446]
[1693702194564,1.05851422,1634.0,1633.9,4.39656807]
[1693702194970,1.05851422,1634.0,1633.9,2.7895]
[1693702195291,1.05851422,1634.0,1633.9,3.46926738]
[1693702196787,1.05851422,1634.0,1633.9,5.074817]
[1693702197007,1.05851422,1634.0,1633.9,3.46926738]
[1693702198719,1.05851422,1634.0,1633.9,5.07448075]
[1693702207856,1.05851422,1634.0,1633.9,6.35769913]
[1693702210821,1.05851422,1634.0,1633.9,0.96229473]
[1693702211208,1.05851422,1634.0,1633.8,2.27362999]
[1693702213952,1.05759472,1634.0,1633.8,2.27362999]
[1693702226243,1.05759472,1634.0,1633.9,0.96229473]
[1693702231704,1.05759472,1634.0,1633.9,5.03631311]
[1693702231904,1.05759472,1634.0,1633.9,5.70327745]
[1693702232054,1.05965042,1634.0,1633.9,5.70327745]
[1693702234497,1.05965042,1634.0,1633.9,3.75309473]
[1693702235783,1.05965042,1634.0,1633.9,5.03631311]
[1693702245598,1.05965042,1634.0,1633.9,4.07401838]
[1693702255655,1.05965042,1634.0,1633.9,5.67923175]
[1693702256062,1.05965042,1634.0,1633.9,5.62923175]
[1693702256263,1.05965042,1634.0,1633.9,6.19496661]
[1693702257181,1.05965042,1634.0,1633.9,4.91174823]
[1693702258242,1.05965042,1634.0,1633.9,3.30653486]
[1693702263863,1.05965042,1634.0,1633.9,3.80233239]
[1693702268754,1.05965042,1634.0,1633.9,5.40740777]
[1693702280446,1.05965042,1634.0,1633.9,5.40722065]
[1693702283835,1.05965042,1634.0,1633.9,5.40725522]
[1693702289540,1.05965042,1634.0,1633.9,3.80233239]
[1693702293050,1.05673998,1634.0,1633.9,3.80233239]
[1693702293251,1.19026174,1634.0,1633.9,3.80233239]
[1693702293965,0.47696114,1634.0,1633.9,3.80233239]
[1693702296364,1.18564924,1634.0,1633.9,3.80233239]
[1693702296566,1.18564924,1634.0,1633.9,3.23659753]
[1693702301569,1.18564924,1634.0,1633.9,5.16250493]
[1693702311071,1.18564924,1634.0,1633.9,14.66635897]
[1693702311377,1.18564924,1634.0,1633.9,16.54734354]
[1693702311586,1.18564924,1634.0,1633.9,14.30045157]
[1693702311790,0.00661132,1634.0,1633.9,19.29872253]
[1693702311993,2.1231,1634.5,1633.9,21.54673252]
[1693702312282,2.1231,1634.5,1634.4,0.96343215]
[1693702314779,2.1231,1634.5,1634.3,1.28457621]
[1693702314780,2.1231,1634.5,1634.3,2.24800836]
[1693702315955,0.00699462,1634.4,1634.3,2.24800836]
[1693702317676,0.00699462,1634.4,1634.3,0.96343215]
[1693702326493,1.10637587,1634.4,1634.3,0.96343215]
[1693702339009,1.10637587,1634.4,1634.3,0.96201997]
[1693702348122,1.10637587,1634.4,1634.3,2.24471326]
[1693702348325,1.10637587,1634.4,1634.3,0.96201997]
[1693702348624,1.10637587,1634.4,1634.3,2.24471326]
[1693702351726,1.10637587,1634.4,1634.3,1.28269329]
[1693702355731,1.10637587,1634.4,1634.3,2.88605991]
[1693702356895,1.10637587,1634.4,1634.3,1.60336662]
[1693702378041,1.10637587,1634.4,1634.3,1.60646598]
[1693702429525,1.10637587,1634.4,1634.3,2.27328671]
[1693702439933,1.10637587,1634.4,1634.3,0.66682073]
[1693702440100,1.10637587,1634.4,1634.3,1.60644841]
[1693702440634,1.10637587,1634.4,1634.2,5.0617413]
[1693702440801,1.10637587,1634.4,1634.3,1.60644833]
[1693702441236,1.10637587,1634.4,1634.2,5.0617413]
[1693702441438,1.10637587,1634.4,1634.3,1.6064471]
[1693702441735,1.10637587,1634.4,1634.2,5.0617413]
[1693702441918,1.10637587,1634.4,1634.3,1.60644881]
[1693702443244,1.10637587,1634.4,1634.2,5.72391543]
[1693702443548,1.10637587,1634.4,1634.3,1.60644073]
[1693702453986,1.10637587,1634.4,1634.2,5.72391543]
[1693702454133,1.10637587,1634.4,1634.3,1.6064141]
[1693702455751,1.10637587,1634.4,1634.2,5.72391543]
[1693702456050,1.10637587,1634.4,1634.3,1.60641288]
[1693702456249,1.10637587,1634.4,1634.2,5.72391543]
[1693702456682,1.10637587,1634.4,1634.3,1.60641609]
[1693702456881,1.10637587,1634.4,1634.2,5.72391543]
[1693702457040,1.10637587,1634.4,1634.3,2.17880678]
[1693702457240,1.10637587,1634.4,1634.3,1.60641524]
[1693702458168,1.10637587,1634.4,1634.2,5.0617413]
[1693702458370,1.10637587,1634.4,1634.3,1.60641847]
[1693702458570,1.10637587,1634.4,1634.2,5.0617413]
[1693702458772,1.10637587,1634.4,1634.3,1.60641676]
[1693702458954,1.10637587,1634.4,1634.2,5.0617413]
[1693702459157,1.10637587,1634.4,1634.3,1.60642307]
[1693702459356,1.10637587,1634.4,1634.2,5.72391543]
[1693702459571,1.10637587,1634.4,1634.3,1.6064235]
[1693702459887,1.10637587,1634.4,1634.2,5.72391543]
[1693702460041,1.10637587,1634.4,1634.3,1.60642962]
[1693702460241,1.10637587,1634.4,1634.2,5.72391543]
[1693702460487,1.10637587,1634.4,1634.3,1.60643099]
[1693702460684,1.10637587,1634.4,1634.2,5.72391543]
[1693702460893,1.10637587,1634.4,1634.3,2.17883083]
[1693702461189,1.10637587,1634.4,1634.2,5.0617413]
[1693702462294,1.10637587,1634.4,1634.3,1.60644614]
[1693702462591,1.10637587,1634.4,1634.2,5.0617413]
[1693702466792,3.30377587,1634.4,1634.2,5.0617413]
[1693702495932,3.29678125,1634.4,1634.2,5.0617413]
[1693702496106,0.00673095,1634.3,1634.2,5.94882067]
[1693702496623,1.07630402,1634.3,1634.2,5.94882067]
[1693702497363,0.00673095,1634.3,1634.2,5.94882067]
[1693702498058,2.1974,1634.4,1634.2,5.94882067]
[1693702498540,1.06956323,1634.3,1634.2,5.94882067]
[1693702498738,2.1974,1634.4,1634.2,5.94882067]
[1693702499110,1.07630074,1634.3,1634.2,5.94882067]
[1693702499454,0.00673095,1634.3,1634.2,5.94882067]
[1693702500114,2.1974,1634.4,1634.2,5.94882067]
[1693702500312,1.661,1634.8,1634.3,7.16449529]
[1693702500313,0.101,1634.8,1634.3,7.16449529]
[1693702500549,2.1038,1634.7,1634.6,1.28505472]
[1693702500756,0.101,1634.8,1634.6,11.43143613]
[1693702501061,0.101,1634.8,1634.7,9.50385404]
[1693702501245,0.101,1634.8,1634.7,14.75290641]
[1693702501448,0.101,1634.8,1634.7,22.69524843]
[1693702501767,0.101,1634.8,1634.7,22.37011164]
[1693702501928,0.101,1634.8,1634.7,23.93011164]
[1693702503560,0.101,1634.8,1634.7,17.76306026]
[1693702504172,0.10648684,1634.8,1634.7,17.76306026]
[1693702504479,0.10648684,1634.8,1634.7,15.83914468]
[1693702505169,0.10648684,1634.8,1634.7,17.76306026]
[1693702506523,1.27706137,1634.8,1634.7,17.76306026]
[1693702507341,1.27706137,1634.8,1634.7,17.75871715]
[1693702507559,1.27706137,1634.8,1634.7,15.83914468]
[1693702508770,0.10648684,1634.8,1634.7,15.83914468]
[1693702509121,0.101,1634.8,1634.7,15.83914468]
[1693702509522,0.101,1634.8,1634.7,18.08819705]
[1693702509746,0.101,1634.8,1634.7,15.83914468]
[1693702510262,0.101,1634.8,1634.7,18.08819705]
[1693702514273,0.101,1634.8,1634.7,15.83914468]
[1693702516531,0.101,1634.8,1634.7,14.27914468]
[1693702516730,0.101,1634.8,1634.7,16.51493195]
[1693702517327,0.101,1634.8,1634.7,2.23578727]
[1693702517537,0.101,1634.8,1634.6,2.73079763]
[1693702517861,0.101,1634.8,1634.6,0.49501036]
[1693702518065,0.101,1634.8,1634.5,2.23578727]
[1693702518430,1.17847044,1634.7,1634.5,2.23578727]
[1693702518656,0.101,1634.8,1634.5,2.23578727]
[1693702520447,1.17847772,1634.7,1634.5,2.23578727]
[1693702521145,0.00548945,1634.6,1634.5,2.23578727]
[1693702521534,1.18394043,1634.6,1634.5,2.23578727]
[1693702522369,1.18394043,1634.6,1634.5,2.72503531]
[1693702522548,1.18394043,1634.6,1634.5,0.48924804]
[1693702524386,1.18394043,1634.6,1634.4,5.24529312]
[1693702524684,1.18394043,1634.6,1634.4,8.32714716]
[1693702525653,1.18394043,1634.6,1634.4,9.88714716]
[1693702528496,1.18394043,1634.6,1634.5,5.73854716]
[1693702528799,1.18394043,1634.6,1634.5,7.29854716]
[1693702529088,1.18394043,1634.6,1634.5,9.22946188]
[1693702549417,1.18394043,1634.6,1634.5,6.57276876]
[1693702550426,1.18394043,1634.6,1634.5,15.65146188]
[1693702550727,1.18394043,1634.6,1634.5,20.21146188]
[1693702555417,1.18394043,1634.6,1634.5,17.55476876]
[1693702557428,1.18394043,1634.6,1634.5,19.79896912]
[1693702566253,1.18394043,1634.6,1634.5,17.55476876]
[1693702567064,1.18394043,1634.6,1634.5,15.99476876]
[1693702571372,1.18394043,1634.6,1634.5,3.08185404]
[1693702571560,1.18394043,1634.6,1634.5,5.32798538]
[1693702572364,1.18394043,1634.6,1634.5,11.74998538]
[1693702573973,1.18394043,1634.6,1634.5,13.30998538]
[1693702585781,1.18394043,1634.6,1634.5,11.06385404]
[1693702585985,1.18394043,1634.6,1634.5,13.04309429]
[1693702615922,1.18394043,1634.6,1634.5,18.69978741]
[1693702623755,1.18394043,1634.6,1634.5,16.04309429]
[1693702624149,1.18394043,1634.6,1634.5,18.69978741]
[1693702640972,1.18394043,1634.6,1634.5,20.25978741]
[1693702641175,1.18394043,1634.6,1634.5,20.73978741]
[1693702653778,1.1285045,1634.6,1634.5,20.73978741]
[1693702654103,0.00595347,1634.6,1634.5,20.73978741]
[1693702654305,1.22481801,1634.6,1634.5,20.73978741]
[1693702654674,1.22481801,1634.6,1634.5,18.08309429]
[1693702655501,1.22481801,1634.6,1634.5,20.73729708]
[1693702656211,2.1056,1634.7,1634.6,9.422]
[1693702656399,2.1056,1634.7,1634.6,22.09178654]
[1693702656599,2.1056,1634.7,1634.6,19.43758375]
[1693702657912,2.1056,1634.7,1634.6,22.09178654]
[1693702662890,0.101,1634.8,1634.6,22.09178654]
[1693702663097,0.101,1634.8,1634.7,14.75031388]
[1693702663283,0.101,1634.8,1634.7,19.29588147]
[1693702665576,0.101,1634.8,1634.7,16.64167868]
[1693702666206,0.101,1634.8,1634.7,19.77588147]
[1693702667627,0.101,1634.8,1634.7,17.12167868]
[1693702670127,0.101,1634.8,1634.7,19.77588147]
[1693702670505,0.101,1634.8,1634.7,17.12167868]
[1693702672733,0.101,1634.8,1634.7,17.30208316]
[1693702672931,0.101,1634.8,1634.7,19.95628595]
[1693702673592,0.101,1634.8,1634.7,17.30208316]
[1693702680724,0.101,1634.8,1634.7,19.95628595]
[1693702681114,0.101,1634.8,1634.7,17.30208316]
[1693702681636,0.101,1634.8,1634.7,19.95628595]
[1693702682341,0.101,1634.8,1634.7,17.30208316]
[1693702683247,0.101,1634.8,1634.7,19.95628595]
[1693702690554,0.101,1634.8,1634.7,17.30208316]
[1693702697654,0.101,1634.8,1634.7,19.95628595]
[1693702710376,0.101,1635.2,1634.9,3.0]
[1693702710586,0.0491,1635.6,1635.2,9.422]
[1693702710875,0.101,1635.8,1635.2,16.78917121]
[1693702711074,2.0279,1635.4,1635.2,20.40087121]
[1693702711254,0.10629912,1635.3,1635.2,20.40087121]
[1693702711440,0.10629912,1635.3,1635.2,20.40095195]
[1693702711644,0.10629912,1635.3,1635.2,23.6348876]
[1693702712044,0.10629912,1635.3,1635.2,23.63486147]
[1693702712244,0.101,1635.3,1635.2,23.63486147]
[1693702719190,0.101,1635.3,1635.2,24.56523343]
[1693702720686,0.101,1635.3,1635.2,22.32094147]
[1693702722990,0.101,1635.3,1635.2,22.8042539]
[1693702724761,0.101,1635.3,1635.2,22.98988124]
[1693702726298,0.101,1635.3,1635.2,25.2289907]
[1693702726501,0.101,1635.3,1635.2,22.98988124]